fUSD/lending_fUSD_20250415
["ID","MTS","AMOUNT","RATE_DAILY","PERIOD"]
[358090446,1744703435122,-603.80332993,0.00017998,2]
[358090447,1744703435131,-500.0,0.00017998,2]
[358090448,1744703435141,-1075.6242176,0.00017998,2]
[358090449,1744703435150,-627.73494628,0.00017998,2]
[358090450,1744703435160,-500.0,0.00017998,2]
[358090451,1744703435170,-540.21098849,0.00017998,2]
[358090452,1744703435179,-464.34969705,0.00017998,2]
[358090453,1744703435189,-500.0,0.00017998,2]
[358090454,1744703435199,-500.0,0.00017998,2]
[358090455,1744703435209,-500.0,0.00017998,2]
[358090456,1744703435219,-522.72813005,0.00017998,2]
[358090457,1744703435228,-500.0,0.00017998,2]
[358090458,1744703435239,-500.0,0.00017998,2]
[358090459,1744703435249,-500.0,0.00017998,2]
[358090460,1744703435258,-500.0,0.00017998,2]
[358090461,1744703435268,-500.0,0.00017998,2]
[358090462,1744703435277,-500.0,0.00017998,2]
[358090463,1744703435287,-500.0,0.00017998,2]
[358090464,1744703435296,-500.0,0.00017998,2]
[358090465,1744703435306,-538.30765339,0.00017998,2]
[358090466,1744703435315,-500.0,0.00017998,2]
[358090467,1744703435325,-500.0,0.00017998,2]
[358090468,1744703435334,-500.0,0.00017998,2]
[358090469,1744703435344,-500.99908357,0.00017998,2]
[358090470,1744703435353,-500.0,0.00017998,2]
[358090471,1744703435362,-500.0,0.00017998,2]
[358090472,1744703435372,-269.2264042,0.00017998,2]
[358090473,1744703435381,-500.0,0.00017998,2]
[358090474,1744703435391,-500.0,0.00017998,2]
[358090475,1744703435399,-500.0,0.00017998,2]
[358090476,1744703435419,-195.07135443,0.00017998,2]
[358090477,1744703435429,-222.2301963,0.00017998,2]
[358090478,1744703435439,-500.0,0.00017998,2]
[358090479,1744703435449,-577.23455589,0.00017998,2]
[358090480,1744703435458,-500.0,0.00017998,2]
[358090481,1744703435468,-500.0,0.00017998,2]
[358090482,1744703435478,-525.79525516,0.00017998,2]
[358090483,1744703435488,-500.0,0.00017998,2]
[358090484,1744703435498,-500.0,0.00017998,2]
[358090485,1744703435507,-500.0,0.00017998,2]
[358090486,1744703435517,-518.36251435,0.00017998,2]
[358090487,1744703435526,-500.0,0.00017998,2]
[358090488,1744703435535,-500.0,0.00017998,2]
[358090489,1744703435545,-500.0,0.00017998,2]
[358090490,1744703435555,-500.0,0.00017998,2]
[358090491,1744703435564,-500.0,0.00017998,2]
[358090492,1744703435574,-162.53,0.00017998,2]
[358090493,1744703435583,-500.0,0.00017998,2]
[358090494,1744703435592,-500.0,0.00017998,2]
[358090495,1744703435602,-500.0,0.00017998,2]
[358090496,1744703435611,-500.0,0.00017998,2]
[358090497,1744703435621,-500.0,0.00017998,2]
[358090498,1744703435630,-500.0,0.00017998,2]
[358090499,1744703435640,-500.0,0.00017998,2]
[358090500,1744703435650,-500.0,0.00017998,2]
[358090501,1744703435659,-500.0,0.00017998,2]
[358090502,1744703435668,-500.0,0.00017998,2]
[358090503,1744703435678,-500.0,0.00017998,2]
[358090504,1744703435687,-500.0,0.00017998,2]
[358090505,1744703435697,-500.0,0.00017998,2]
[358090506,1744703435706,-500.0,0.00017998,2]
[358090507,1744703435715,-500.0,0.00017998,2]
[358090508,1744703435724,-500.0,0.00017998,2]
[358090509,1744703435733,-500.0,0.00017998,2]
[358090510,1744703435747,-500.0,0.00017999,2]
[358090511,1744703435756,-500.0,0.00017999,2]
[358090512,1744703435765,-500.0,0.00017999,2]
[358090513,1744703435775,-500.0,0.00017999,2]
[358090514,1744703435785,-500.0,0.00017999,2]
[358090515,1744703435795,-500.0,0.00017999,2]
[358090516,1744703435804,-500.0,0.00017999,2]
[358090517,1744703435814,-373.5084516,0.00017999,2]
[358090518,1744703435824,-500.0,0.00017999,2]
[358090519,1744703435833,-500.0,0.00017999,2]
[358090520,1744703435842,-500.0,0.00017999,2]
[358090521,1744703435852,-160.663922,0.00017999,2]
[358090522,1744703435861,-500.0,0.00017999,2]
[358090523,1744703435871,-500.0,0.00017999,2]
[358090524,1744703435880,-500.0,0.00017999,2]
[358090525,1744703435890,-312.076143,0.00017999,2]
[358090526,1744703435899,-500.0,0.00017999,2]
[358090527,1744703435908,-395.8392905,0.00017999,2]
[358090528,1744703435918,-500.0,0.00017999,2]
[358090529,1744703435927,-500.0,0.00017999,2]
[358090530,1744703435937,-500.0,0.00017999,2]
[358090531,1744703435947,-500.0,0.00017999,2]
[358090532,1744703435956,-500.0,0.00017999,2]
[358090533,1744703435966,-500.0,0.00017999,2]
[358090534,1744703435976,-500.0,0.00017999,2]
[358090535,1744703435985,-500.0,0.00017999,2]
[358090536,1744703435994,-500.0,0.00017999,2]
[358090537,1744703436003,-500.0,0.00017999,2]
[358090538,1744703436013,-500.0,0.00017999,2]
[358090539,1744703436022,-500.0,0.00017999,2]
[358090540,1744703436031,-500.0,0.00017999,2]
[358090541,1744703436041,-500.0,0.00017999,2]
[358090542,1744703436050,-500.0,0.00017999,2]
[358090543,1744703436059,-500.0,0.00017999,2]
[358090544,1744703436069,-648.25,0.00017999,2]
[358090545,1744703436079,-396.48,0.00017999,2]
[358090546,1744703436088,-601.24,0.00017999,2]
[358090547,1744703436097,-622.76018417,0.00017999,2]
[358090548,1744703436106,-500.0,0.00017999,2]
[358090549,1744703436116,-500.0,0.00017999,2]
[358090550,1744703436125,-493.12712398,0.00017999,2]
[358090551,1744703436135,-3917.65,0.00017999,2]
[358090552,1744703436145,-3917.65,0.00017999,2]
[358090553,1744703436154,-3917.65,0.00017999,2]
[358090554,1744703436164,-3917.65,0.00017999,2]
[358090555,1744703436174,-3917.65,0.00017999,2]
[358090556,1744703436183,-3917.65,0.00017999,2]
[358090557,1744703436193,-3917.65,0.00017999,2]
[358090558,1744703436203,-3917.65,0.00017999,2]
[358090559,1744703436212,-3917.65,0.00017999,2]
[358090560,1744703436222,-3917.65,0.00017999,2]
[358090561,1744703436231,-3917.65,0.00017999,2]
[358090562,1744703436241,-3917.65,0.00017999,2]
[358090563,1744703436251,-3917.65,0.00017999,2]
[358090564,1744703436260,-3917.65,0.00017999,2]
[358090565,1744703436269,-3917.65,0.00017999,2]
[358090566,1744703436279,-3917.65,0.00017999,2]
[358090567,1744703436288,-3917.65,0.00017999,2]
[358090568,1744703436297,-3917.65,0.00017999,2]
[358090569,1744703436307,-3917.65,0.00017999,2]
[358090570,1744703436316,-3917.65,0.00017999,2]
[358090571,1744703436325,-3917.65,0.00017999,2]
[358090572,1744703436335,-3917.65,0.00017999,2]
[358090573,1744703436344,-3917.73147687,0.00017999,2]
[358090574,1744703436354,-500.0,0.00017999,2]
[358090575,1744703436363,-270.35,0.00017999,2]
[358090576,1744703436373,-500.0,0.00017999,2]
[358090577,1744703436382,-500.0,0.00017999,2]
[358090578,1744703436391,-500.0,0.00017999,2]
[358090579,1744703436400,-500.0,0.00017999,2]
[358090580,1744703436410,-500.0,0.00017999,2]
[358090581,1744703436419,-500.0,0.00017999,2]
[358090582,1744703436428,-500.0,0.00017999,2]
[358090583,1744703436437,-505.8073415,0.00017999,2]
[358090584,1744703436446,-500.0,0.00017999,2]
[358090585,1744703436455,-500.0,0.00017999,2]
[358090586,1744703436465,-500.0,0.00017999,2]
[358090587,1744703436474,-500.0,0.00017999,2]
[358090588,1744703436484,-500.0,0.00017999,2]
[358090589,1744703436494,-486.23,0.00017999,2]
[358090590,1744703436503,-500.0,0.00017999,2]
[358090591,1744703436512,-500.0,0.00017999,2]
[358090592,1744703436522,-189.35,0.00017999,2]
[358090593,1744703436531,-530.94546063,0.00017999,2]
[358090594,1744703436541,-438.80308448,0.00017999,2]
[358090595,1744703436551,-500.0,0.00017999,2]
[358090596,1744703436560,-511.31,0.00017999,2]
[358090597,1744703436569,-500.0,0.00017999,2]
[358090598,1744703436579,-500.0,0.00017999,2]
[358090599,1744703436588,-500.0,0.00017999,2]
[358090600,1744703436597,-500.0,0.00017999,2]
[358090601,1744703436608,-500.0,0.00017999,2]
[358090602,1744703436617,-361.01038494,0.00017999,2]
[358090603,1744703436626,-552.40630244,0.00017999,2]
[358090604,1744703436635,-500.0,0.00017999,2]
[358090605,1744703436645,-500.0,0.00017999,2]
[358090606,1744703436654,-500.0,0.00017999,2]
[358090607,1744703436663,-500.0,0.00017999,2]
[358090608,1744703436672,-227.67782735,0.00017999,2]
[358090609,1744703436682,-500.0,0.00017999,2]
[358090610,1744703436691,-500.0,0.00017999,2]
[358090611,1744703436700,-500.0,0.00017999,2]
[358090612,1744703436709,-500.0,0.00017999,2]
[358090613,1744703436718,-399.56,0.00017999,2]
[358090614,1744703436727,-500.0,0.00017999,2]
[358090615,1744703436739,-500.0,0.00017999,2]
[358090616,1744703436748,-500.0,0.00017999,2]
[358090617,1744703436757,-500.0,0.00017999,2]
[358090618,1744703436767,-500.0,0.00017999,2]
[358090619,1744703436776,-500.0,0.00017999,2]
[358090620,1744703436786,-500.0,0.00017999,2]
[358090621,1744703436796,-500.0,0.00017999,2]
[358090622,1744703436805,-500.0,0.00017999,2]
[358090623,1744703436815,-500.0,0.00017999,2]
[358090624,1744703436825,-500.0,0.00017999,2]
[358090625,1744703436835,-500.0,0.00017999,2]
[358090626,1744703436844,-500.0,0.00017999,2]
[358090627,1744703436853,-500.0,0.00017999,2]
[358090628,1744703436863,-500.0,0.00017999,2]
[358090629,1744703436872,-500.0,0.00017999,2]
[358090630,1744703436881,-504.01709305,0.00017999,2]
[358090631,1744703436891,-181.2124781,0.00017999,2]
[358090632,1744703436900,-254.3070896,0.00017999,2]
[358090633,1744703436909,-76355.26757639,0.00018,2]
[358090634,1744703436919,-1842.0,0.00018,2]
[358090635,1744703436928,-2299.99999803,0.00018,2]
[358090636,1744703436938,-1121096.77474654,0.00018,2]
[358090637,1744703436948,-151063.78988012,0.00018,2]
[358090638,1744703436968,-38199.99999998,0.00018,2]
[358090641,1744703438495,-556.6326204,0.00018,2]
[358090642,1744703438507,-16359.92150274,0.00018,2]
[358090643,1744703438529,-220021.57074798,0.00018,2]
[358090646,1744703438541,-71622.39680208,0.00018,2]
[358090648,1744703438552,-4281.59999999,0.00018,2]
[358090870,1744703440856,-471.273,0.00018,2]
[358091293,1744703444983,-3716.413892,0.00018,2]
[358091304,1744703445080,-1719.0,0.00018,2]
[358091306,1744703445090,-117404.45102042,0.00018,2]
[358091600,1744703447515,-21867.35321337,0.00018,2]
[358091604,1744703447542,-469.79826472,0.00017998,2]
[358091605,1744703447552,-85231.0465655,0.00018,2]
[358092777,1744703651414,150.0,0.00027,30]
[358092778,1744704006987,-429.3115483,0.00017604,2]
[358092779,1744704007016,-164.4777573,0.0001782,2]
[358092780,1744704007046,-250.0,0.0001784,2]
[358092781,1744704007072,-1124.5282,0.00017896,2]
[358092782,1744704007100,-6244.5784,0.00017899,2]
[358092783,1744704007128,-300.0,0.00017899,2]
[358092784,1744704007159,-6228.3939163,0.000179,2]
[358092785,1744704007186,-106.82348624,0.000179,2]
[358092788,1744704093211,153.23,0.00013699,2]
[358092789,1744704093628,153.23,0.00013699,2]
[358092790,1744704093938,153.23,0.00013699,2]
[358092791,1744704094321,153.23,0.00013699,2]
[358092792,1744704094704,153.23,0.00013699,2]
[358092793,1744704095108,153.23,0.00013699,2]
[358092794,1744704096058,153.23,0.00013699,2]
[358092795,1744704096492,153.23,0.00013699,2]
[358092796,1744704096872,153.23,0.00013699,2]
[358092797,1744704097377,153.23,0.00013699,2]
[358092798,1744704097779,153.23,0.00013699,2]
[358092799,1744704098227,153.23,0.00013699,2]
[358092800,1744704098578,153.23,0.00013699,2]
[358092801,1744704098980,153.34184213,0.00013699,2]
[358092809,1744704197746,713.36,0.00015724,2]
[358092813,1744704515284,581.0,0.0002699,30]
[358092819,1744704632402,-166.62,0.00017573,2]
[358092820,1744704632412,-1000.0,0.00017649,2]
[358092821,1744704632422,-250.0,0.00017675,2]
[358092822,1744704632434,-622.77,0.000177,2]
[358092823,1744704632444,-164.4777573,0.0001782,2]
[358092824,1744704632456,-300.0,0.00017968,2]
[358092825,1744704632467,-300.0,0.00017968,2]
[358092826,1744704632477,-1288.0,0.00017969,2]
[358092827,1744704632487,-582.76,0.00017969,2]
[358092828,1744704632497,-253.129,0.00017969,2]
[358092829,1744704632506,-155.0,0.00017969,2]
[358092830,1744704632516,-152.0,0.00017969,2]
[358092831,1744704632527,-500.0,0.00017973,2]
[358092832,1744704632538,-713.36,0.00017988,2]
[358092833,1744704632549,-151.0,0.00017989,2]
[358092834,1744704632560,-668.65185757,0.00017989,2]
[358092835,1744704632569,-207.4,0.00017989,2]
[358092836,1744704632579,-630.01386017,0.00017998,2]
[358092837,1744704632590,-578.89775879,0.00017998,2]
[358092838,1744704632599,-352.621,0.00017998,2]
[358092839,1744704632609,-500.0,0.00017998,2]
[358092840,1744704632619,-1003.0686,0.00017999,2]
[358092841,1744704632629,-1568.01852123,0.00017999,2]
[358092842,1744704632641,-693.98147877,0.00017999,2]
[358092843,1744704632654,-1430.0,0.00017999,2]
[358092844,1744704632665,-500.0,0.00017999,2]
[358092845,1744704632676,-229.63862188,0.00017999,2]
[358092846,1744704632687,-446.27638389,0.00017999,2]
[358092847,1744704632696,-130.46251546,0.00017999,2]
[358092850,1744704632716,-290.3,0.00017999,2]
[358092856,1744704638651,-1122.0,0.00017969,2]
[358092857,1744704638663,-79.23748454,0.00017999,2]
[358092858,1744704638676,-500.0,0.00017999,2]
[358092859,1744704638689,-506.48145508,0.00017999,2]
[358092860,1744704638702,-500.0,0.00017999,2]
[358092861,1744704638714,-500.0,0.00017999,2]
[358092863,1744704638724,-500.0,0.00017999,2]
[358092865,1744704638735,-544.93126776,0.00017999,2]
[358092867,1744704638748,-530.98,0.00017999,2]
[358092869,1744704638758,-530.98,0.00017999,2]
[358092871,1744704638768,-530.98,0.00017999,2]
[358092872,1744704638779,-530.98,0.00017999,2]
[358092873,1744704638790,-530.98,0.00017999,2]
[358092874,1744704638802,-530.98,0.00017999,2]
[358092875,1744704638813,-530.98,0.00017999,2]
[358092876,1744704638823,-530.98,0.00017999,2]
[358092877,1744704638835,-530.98,0.00017999,2]
[358092879,1744704638847,-530.98,0.00017999,2]
[358092881,1744704638858,-530.98,0.00017999,2]
[358092883,1744704638869,-530.98,0.00017999,2]
[358092884,1744704638879,-530.98,0.00017999,2]
[358092885,1744704638892,-530.98,0.00017999,2]
[358092886,1744704638902,-530.98,0.00017999,2]
[358092887,1744704638912,-530.98,0.00017999,2]
[358092888,1744704638923,-530.98,0.00017999,2]
[358092889,1744704638934,-530.98,0.00017999,2]
[358092890,1744704638945,-530.98,0.00017999,2]
[358092891,1744704638956,-530.98,0.00017999,2]
[358092892,1744704638967,-530.98,0.00017999,2]
[358092893,1744704638977,-530.98,0.00017999,2]
[358092894,1744704638988,-530.98,0.00017999,2]
[358092895,1744704638998,-531.21999999,0.00017999,2]
[358092896,1744704639011,-500.0,0.00017999,2]
[358092897,1744704639022,-500.0,0.00017999,2]
[358092898,1744704639035,-500.0,0.00017999,2]
[358092899,1744704639046,-390.28,0.00017999,2]
[358092900,1744704639057,-150.0,0.00017999,2]
[358092901,1744704639068,-500.0,0.00017999,2]
[358092902,1744704639080,-500.0,0.00017999,2]
[358092903,1744704639090,-500.0,0.00017999,2]
[358092904,1744704639104,-500.0,0.00017999,2]
[358092905,1744704639119,-500.0,0.00017999,2]
[358092906,1744704639130,-500.0,0.00017999,2]
[358092907,1744704639140,-500.0,0.00017999,2]
[358092908,1744704639153,-500.0,0.00017999,2]
[358092909,1744704639163,-500.0,0.00017999,2]
[358092910,1744704639177,-601.57801058,0.00017999,2]
[358092911,1744704639188,-500.0,0.00017999,2]
[358092912,1744704639201,-500.0,0.00017999,2]
[358092913,1744704639212,-500.0,0.00017999,2]
[358092914,1744704639222,-500.0,0.00017999,2]
[358092915,1744704639234,-500.0,0.00017999,2]
[358092916,1744704639244,-500.0,0.00017999,2]
[358092917,1744704639256,-500.0,0.00017999,2]
[358092918,1744704639268,-500.0,0.00017999,2]
[358092919,1744704639278,-166.66,0.00017999,2]
[358092920,1744704639289,-500.0,0.00017999,2]
[358092921,1744704639300,-500.0,0.00017999,2]
[358092922,1744704639311,-500.0,0.00017999,2]
[358092923,1744704639322,-500.0,0.00017999,2]
[358092924,1744704639332,-614.99835066,0.00017999,2]
[358092925,1744704639343,-500.0,0.00017999,2]
[358092926,1744704639354,-500.0,0.00017999,2]
[358092927,1744704639365,-500.0,0.00017999,2]
[358092928,1744704639375,-500.0,0.00017999,2]
[358092929,1744704639386,-120746.60532947,0.00018,2]
[358092930,1744704639396,-1632.0,0.00018,2]
[358092931,1744704639409,-64723.0388499,0.00018,2]
[358092932,1744704639423,-71622.39680208,0.00018,2]
[358092977,1744704645476,-262.44822189,0.00018,2]
[358092985,1744704646491,-782.067846,0.00018,2]
[358092986,1744704646547,-414.41812921,0.00018,2]
[358092987,1744704646582,-269.51402479,0.00018,2]
[358092988,1744704646592,-12587.91311541,0.00018,2]
[358092989,1744704646675,-334894.25255858,0.00018,2]
[358093044,1744704722154,350.0,0.00019602,12]
[358093075,1744704952415,1187.69461876,0.0002,3]
[358093102,1744705122388,2368.02219838,0.00025999,120]
[358093105,1744705165331,-250.0,0.00017698,2]
[358093109,1744705180239,642.02,0.00015719,2]
[358093112,1744705206378,164.61,0.00017,2]
[358093113,1744705208711,164.61,0.00017,2]
[358093124,1744705416513,-174.13,0.00017578,2]
[358093125,1744705440658,779.297966,0.0001749,2]
[358093126,1744705444551,-174.13,0.00017578,2]
[358093129,1744705505682,306.91,0.00017,2]
[358093130,1744705507552,306.91,0.00017,2]
[358093131,1744705507829,-250.0,0.00017578,2]
[358093135,1744705707958,377.77331753,7.888e-05,2]
[358093136,1744705708604,-325.45265272,0.00017578,2]
[358093137,1744705726346,-168.0581565,0.00017552,2]
[358093147,1744705831644,-180.2018435,0.00017552,2]
[358093148,1744705831654,-76.28734728,0.00017578,2]
[358093149,1744705831663,-374.83080922,0.00017698,2]
[358093151,1744705837442,-114.22919078,0.00017698,2]
[358093152,1744705837452,-285.54505925,0.00017782,2]
[358093153,1744705837464,-773.47500457,0.00017782,2]
[358093154,1744705837476,-493.5109,0.000178,2]
[358093155,1744705837485,-164.4777573,0.0001782,2]
[358093156,1744705837495,-391.81712775,0.00017883,2]
[358093157,1744705837507,-174.22287225,0.00017883,2]
[358093158,1744705837517,-300.0,0.00017899,2]
[358093159,1744705837526,-5564.0312,0.000179,2]
[358093160,1744705837536,-1178.42093873,0.000179,2]
[358093161,1744705837545,-500.0,0.00017973,2]
[358093162,1744705837554,-500.0,0.00017973,2]
[358093163,1744705837565,-409.861,0.00017979,2]
[358093164,1744705837575,-907.0,0.00017979,2]
[358093165,1744705837584,-167.889,0.00017979,2]
[358093166,1744705837593,-575.0,0.00017979,2]
[358093167,1744705837603,-642.02,0.00017983,2]
[358093168,1744705837612,-151.0,0.00017989,2]
[358093169,1744705837621,-668.65185757,0.00017989,2]
[358093170,1744705837631,-207.4,0.00017989,2]
[358093171,1744705837640,-282.096,0.00017999,2]
[358093172,1744705837650,-1000.0,0.00017999,2]
[358093173,1744705837659,-500.0,0.00017999,2]
[358093174,1744705837668,-500.0,0.00017999,2]
[358093175,1744705837678,-500.0,0.00017999,2]
[358093176,1744705837688,-530.98,0.00017999,2]
[358093177,1744705837697,-530.98,0.00017999,2]
[358093178,1744705837708,-530.98,0.00017999,2]
[358093179,1744705837718,-530.98,0.00017999,2]
[358093180,1744705837727,-530.98,0.00017999,2]
[358093181,1744705837737,-500.0,0.00017999,2]
[358093182,1744705837747,-530.98,0.00017999,2]
[358093183,1744705837756,-500.0,0.00017999,2]
[358093184,1744705837766,-530.98,0.00017999,2]
[358093185,1744705837775,-493.08555221,0.00017999,2]
[358093186,1744705837791,-6.91444779,0.00017999,2]
[358093187,1744705837801,-418.34555008,0.00017999,2]
[358093188,1744705837812,-112.63444992,0.00017999,2]
[358093189,1744705837822,-390.28,0.00017999,2]
[358093190,1744705837832,-530.98,0.00017999,2]
[358093191,1744705837841,-530.98,0.00017999,2]
[358093192,1744705837851,-530.98,0.00017999,2]
[358093193,1744705837862,-530.98,0.00017999,2]
[358093194,1744705837872,-530.98,0.00017999,2]
[358093195,1744705837882,-530.98,0.00017999,2]
[358093197,1744705837891,-530.98,0.00017999,2]
[358093199,1744705837900,-530.98,0.00017999,2]
[358093201,1744705837910,-530.98,0.00017999,2]
[358093203,1744705837919,-530.98,0.00017999,2]
[358093204,1744705837928,-530.98,0.00017999,2]
[358093205,1744705837938,-530.98,0.00017999,2]
[358093207,1744705837947,-530.98,0.00017999,2]
[358093209,1744705837957,-530.98,0.00017999,2]
[358093211,1744705837967,-530.98,0.00017999,2]
[358093213,1744705837976,-531.21999999,0.00017999,2]
[358093215,1744705837985,-150.0,0.00017999,2]
[358093217,1744705837995,-500.0,0.00017999,2]
[358093219,1744705838004,-500.0,0.00017999,2]
[358093220,1744705838013,-500.0,0.00017999,2]
[358093222,1744705838022,-500.0,0.00017999,2]
[358093224,1744705838032,-500.0,0.00017999,2]
[358093226,1744705838041,-500.0,0.00017999,2]
[358093228,1744705838051,-500.0,0.00017999,2]
[358093230,1744705838061,-500.0,0.00017999,2]
[358093232,1744705838070,-500.0,0.00017999,2]
[358093234,1744705838079,-500.0,0.00017999,2]
[358093236,1744705838088,-500.0,0.00017999,2]
[358093238,1744705838097,-500.0,0.00017999,2]
[358093240,1744705838106,-500.0,0.00017999,2]
[358093242,1744705838116,-166.66,0.00017999,2]
[358093244,1744705838125,-500.0,0.00017999,2]
[358093246,1744705838135,-500.0,0.00017999,2]
[358093248,1744705838144,-500.0,0.00017999,2]
[358093250,1744705838153,-500.0,0.00017999,2]
[358093252,1744705838162,-500.0,0.00017999,2]
[358093254,1744705838171,-500.0,0.00017999,2]
[358093256,1744705838182,-601.57801058,0.00017999,2]
[358093258,1744705838191,-500.0,0.00017999,2]
[358093260,1744705838200,-500.0,0.00017999,2]
[358093262,1744705838210,-500.0,0.00017999,2]
[358093287,1744705838431,-612.72,0.00017999,2]
[358093289,1744705838440,-614.99835066,0.00017999,2]
[358093291,1744705838449,-500.0,0.00017999,2]
[358093293,1744705838457,-500.0,0.00017999,2]
[358093295,1744705838467,-500.0,0.00017999,2]
[358093297,1744705838479,-500.0,0.00017999,2]
[358093298,1744705838489,-500.0,0.00017999,2]
[358093300,1744705838498,-500.0,0.00017999,2]
[358093302,1744705838508,-500.0,0.00017999,2]
[358093304,1744705838517,-500.0,0.00017999,2]
[358093306,1744705838527,-500.0,0.00017999,2]
[358093308,1744705838537,-500.0,0.00017999,2]
[358093310,1744705838550,-544.93126776,0.00017999,2]
[358093312,1744705838560,-3254.97802895,0.00017999,2]
[358093314,1744705838569,-127426.63838465,0.00018,2]
[358093316,1744705838579,-1551.0,0.00018,2]
[358093318,1744705838588,-60099.23225547,0.00018,2]
[358093320,1744705838601,-71622.39680208,0.00018,2]
[358093323,1744705838612,-858.0,0.00018,2]
[358093325,1744705838628,-4666.50000006,0.00018,2]
[358093419,1744705839643,-152.0,0.00017979,2]
[358093421,1744705839653,-395.26450984,0.00018,2]
[358093423,1744705839665,-500.0,0.00018,2]
[358093440,1744705839856,-2000.26130666,0.00018,2]
[358093453,1744705839991,-0.11665283,0.00018,2]
[358093461,1744705840072,-4000.0,0.00018,2]
[358093706,1744705844167,-1399.0,0.00018,2]
[358093707,1744705844177,-6180.59781009,0.00018,2]
[358093708,1744705844188,-1986.82732598,0.00018,2]
[358093709,1744705844201,-260220.27053582,0.00018,2]
[358093710,1744705844221,-1120.60021825,0.00018,2]
[358093736,1744705845522,-9068.4486635,0.00018,2]
[358093743,1744705845578,-17165.95565942,0.00018,2]
[358093764,1744705845771,-494.42052,0.00018,2]
[358093803,1744706066630,-157.98264617,0.00017614,2]
[358093804,1744706105255,5940.03,0.00017,2]
[358093805,1744706105764,-218.99673129,0.00017614,2]
[358093806,1744706106959,5940.03,0.00017,2]
[358093807,1744706109157,5940.03,0.00017,2]
[358093808,1744706110819,5940.03,0.00017,2]
[358093809,1744706158002,817.37,0.00017369,2]
[358093810,1744706228377,2936.407168,7.945e-05,2]
[358093811,1744706304536,250.0,0.00017375,2]
[358093812,1744706342053,-274.46244612,0.00017557,2]
[358093813,1744706440442,615.41,0.00015409,2]
[358093814,1744706454216,-265.46207263,0.00017557,2]
[358093815,1744706466183,1000.0,0.00017338,2]
[358093816,1744706466591,-400.7833,0.00017557,2]
[358093817,1744706487635,-250.0,0.00017557,2]
[358093818,1744706499238,-300.0,0.00017557,2]
[358093819,1744706514422,-191.2601,0.00017557,2]
[358093820,1744706531593,-621.405,0.00017557,2]
[358093821,1744706536382,352.73139614,0.00027,30]
[358093822,1744706563195,-150.0,0.00017557,2]
[358093823,1744706564479,578.89775879,0.00027,30]
[358093826,1744706643002,-80.57336324,0.00017557,2]
[358093827,1744706643027,-69.42663676,0.00017586,2]
[358093828,1744706701602,250.0,0.00017199,2]
[358093829,1744706702309,-180.57336324,0.00017586,2]
[358093830,1744706702333,-46.28351833,0.00017614,2]
[358093839,1744706919013,183.26,0.00017327,2]
[358093840,1744706920026,-162.245122,0.00017614,2]
[358093841,1744706920449,-162.246,0.00017614,2]
[358093843,1744707031566,-288.0,0.00017614,2]
[358093844,1744707031578,-1592.75700802,0.00017614,2]
[358093845,1744707031589,-30.04897419,0.00017614,2]